Cogmind - Beta 13 @@@ ROGUE MODE // 2024.04.07 @ 02:12:51 Player: Eschess Result: Destroyed by S-27 Virus with Autogun Performance ------------- Evolutions (3) 1500 Regions Visited (6) 1200 Robots Destroyed (50) 250 Value Destroyed (1714) 1714 Prototype IDs (8) 160 Alien Tech Used (0) 0 Bonus (500) 500 TOTAL SCORE: 5324 Bonus ------- Entered DSFs 500 Cogmind --------- Core Integrity 0/700 Matter 259/300 Energy 73/150 System Corruption 7% Temperature Cool (0) Movement Treading (250) Ox1 Location -7/DSF Parts ------- > --- POWER (3) -------- Micro Nuclear Core > --- PROPULSION (3) --- Armored Treads > --- UTILITY (4) ------ Large Storage Unit Weight Redist. System > --- WEAPON (3) ------- Improved Light Cannon > --- INVENTORY (15) --- Large Storage Unit Medium Matter Pod (100) Signal Interpreter Tractor Beam Recalibrator Peak State ------------ > --- POWER ------------ Nuclear Core Nuclear Core Light Nuclear Core > --- PROPULSION ------- Armored Wheel > --- UTILITY ---------- Improved Heat Sink Improved Heat Sink Large Storage Unit Recalibrator > --- WEAPON ----------- Heavy Laser Gatling Laser Ion Cannon > --- INVENTORY -------- Large Storage Unit Medium Matter Pod Weight Redist. System Signal Interpreter Tractor Beam Improved Light Cannon [Rating: 33] Favorites ----------- Power Light Nuclear Core Engine Light Ion Engine Power Core Light Nuclear Core Propulsion Armored Wheel Treads Armored Treads Leg Aluminum Leg Wheel Armored Wheel Hover Unit Improved Hover Unit Flight Unit Cesium-ion Thruster Utility Large Storage Unit Device Shield Generator Storage Large Storage Unit Processor Improved Signal Interpreter Protection Hardened Light Armor Plating Weapon Heavy Assault Rifle Energy Gun Particle Gun Energy Cannon Ion Cannon Ballistic Gun Heavy Assault Rifle Ballistic Cannon Improved Light Cannon Launcher Grenade Launcher Special Weapon Welding Torch Impact Weapon Flail Slashing Weapon Mining Claw Build | -11 -10 -10 -9 -8 -7 -7 ------- Run | Yrd Mat Min Mat Mat Fac DSF Slots Evolved 6 | . . . 2 2 2 . Power 2 | . . . 1 1 . . Propulsion 1 | . . . . 1 . . Utility 2 | . . . 1 . 1 . Weapon 1 | . . . . . 1 . Parts Attached 95 | 6 8 . 17 44 4 16 Power 18 | 1 . . 5 8 . 4 Engine 10 | 1 . . 5 4 . . Core 8 | . . . . 4 . 4 Reactor . | . . . . . . . Propulsion 24 | 3 2 . 2 15 1 1 Treads 1 | . . . . . . 1 Leg 5 | 1 . . . 4 . . Wheel 14 | 2 2 . 2 7 1 . Hover 1 | . . . . 1 . . Flight 3 | . . . . 3 . . Utility 15 | . 2 . 3 6 1 3 Device 7 | . 1 . . 3 . 3 Storage 2 | . 1 . 1 . . . Processor 3 | . . . 1 1 1 . Hackware . | . . . . . . . Protection 3 | . . . 1 2 . . Artifact . | . . . . . . . Weapon 38 | 2 4 . 7 15 2 8 Energy Gun 12 | 2 2 . 1 2 1 4 Energy Cannon 1 | . . . . . . 1 Ballistic Gun 13 | . 2 . 2 8 1 . Ballistic Cannon 6 | . . . 1 4 . 1 Launcher 1 | . . . . 1 . . Special Weapon 1 | . . . 1 . . . Impact Weapon 1 | . . . 1 . . . Slashing Weapon 3 | . . . 1 . . 2 Piercing Weapon . | . . . . . . . Special Melee Weapon . | . . . . . . . Unidentified Prototypes 1 | . . . 1 . . . Parts Lost 46 | . 2 . 6 17 . 21 Power 14 | . 1 . 2 6 . 5 Propulsion 10 | . . . 2 5 . 3 Utility 8 | . . . 1 3 . 4 Weapon 14 | . 1 . 1 3 . 9 Highest Loss Streak 19 | . 1 . 4 8 . 19 To Critical Strikes . | . . . . . . . Average Slot Usage (%) 82 | . 87 85 87 84 100 42 Engine 8 | . 11 . 13 6 . . Core 5 | . . . . 10 23 6 Wheel 18 | . 28 28 21 16 23 5 Hover 1 | . . . . 2 . . Flight 1 | . . . . 2 . . Device 7 | . 9 14 5 7 7 9 Storage 14 | . 12 14 22 12 7 7 Processor 3 | . . . 1 5 7 1 Protection 1 | . . . 3 1 7 . Energy Gun 5 | . 22 28 3 1 7 3 Ballistic Gun 7 | . 2 . 3 11 15 1 Ballistic Cannon 2 | . . . 1 3 . . Impact Weapon 1 | . . . 3 . . . Slashing Weapon 2 | . . . 6 . . 2 Naked Turns . | . . . . . . . Heaviest Build 56 | 6 30 26 45 53 56 56 Greatest Support 38 | 20 24 24 24 36 38 38 Greatest Overweight (x) 8 | . 1 1 2 7 1 8 Average Overweight (x) 1 | . . 1 1 1 1 2 Largest Inventory Capacity 15 | 5 15 15 15 15 15 15 Average Capacity 14 | 5 14 15 15 15 15 15 Most Carried 15 | 5 12 12 15 15 14 14 Average Carried 12 | 2 9 12 14 12 12 8 Final Capacity 15 | 5 15 15 15 15 15 15 Final Carried 15 | 5 12 12 15 15 13 5 Class Distribution -------------------- 78% | Mutant 19% | Scavenger-Mutant Dominant Class ---------------- Mutant | -10/Materials Mutant | -10/Mines Mutant | -9/Materials Mutant | -8/Materials Gunner | -7/Factory Mutant | -7/DSF Resources | -11 -10 -10 -9 -8 -7 -7 ----------- Run | Yrd Mat Min Mat Mat Fac DSF Matter Collected 1477 | 260 82 . 361 609 105 60 Remotely 167 | . . . . 167 . . Salvage Created 1808 | 31 239 . 547 850 . 141 Parts 108 | 2 14 . 35 49 . 8 Haulers Intercepted 1 | . . . 1 . . . Recyclers Shooed 1 | . . . . 1 . . Parts Field Recycled . | . . . . . . . Retrieved Matter . | . . . . . . . Parts Self-Destructed . | . . . . . . . Prevented . | . . . . . . . Kills | -11 -10 -10 -9 -8 -7 -7 ------- Run | Yrd Mat Min Mat Mat Fac DSF Combat Hostiles Destroyed 40 | 1 6 . 13 17 . 3 Melee 9 | . . . 6 1 . 2 Guns 24 | 1 6 . 6 10 . 1 Cannons 2 | . . . . 2 . . AOE 4 | . . . . 4 . . Classes Destroyed 13 | 1 2 . 4 4 . 2 Worker 2 | . 1 . . 1 . . Builder 1 | . . . 1 . . . Hauler 1 | . . . 1 . . . Recycler 2 | . . . . 2 . . Watcher 4 | . 1 . 1 2 . . Swarmer 4 | . . . 4 . . . Grunt 26 | 1 6 . 8 10 . 1 Brawler 1 | . . . . 1 . . Duelist 1 | . . . . 1 . . Sentry 4 | . . . 1 3 . . Specialist 2 | . . . . 2 . . Programmer 1 | . . . . . . 1 Heavy 1 | . . . . . . 1 Best Kill Streak 8 | 1 2 . 5 8 . 1 Combat Bots Only 6 | 1 2 . 5 6 . 1 Max Kills in Single Turn 3 | 1 1 . 1 3 . 1 Gunslinging . | . . . . . . . Exploded 2 | . . . . 2 . . Melee 1 | . . . 1 1 . 1 Uniques/NPCs Destroyed . | . . . . . . . Combat | -11 -10 -10 -9 -8 -7 -7 -------- Run | Yrd Mat Min Mat Mat Fac DSF Hostile Shots Fired 512 | 10 56 . 125 195 . 126 Missed 144 | 1 21 . 43 47 . 32 Damage Taken 6222 | 101 382 . 949 2515 . 2275 Core 1347 | 57 107 . 153 320 . 710 Absorbed by Shields 54 | . 54 . . . . . Core Remaining (%) 53 | 77 . 34 61 41 . . Volleys Fired 162 | 7 31 . 28 82 . 14 Largest 3 | 2 2 . 2 2 . 3 Hottest 209 | 90 115 . 105 86 . 209 Shots Fired 264 | 14 58 . 29 133 . 30 Gun 207 | 14 58 . 26 90 . 19 Cannon 50 | . . . 3 36 . 11 Launcher 7 | . . . . 7 . . Special . | . . . . . . . Kinetic 145 | . 8 . 26 107 . 4 Thermal 110 | 14 50 . 3 19 . 24 Explosive 7 | . . . . 7 . . Electromagnetic 2 | . . . . . . 2 Robot Hit Streak 11 | 3 11 . 8 8 . 9 Robot Miss Streak 4 | 2 2 . 3 4 . 3 Penetration Max . | . . . . . . . Secondary Targets 2 | . 1 . . 1 . . Max Gunslinging Chain 1 | . 1 . . 1 . . Shots Hit Robots 215 | 8 41 . 45 91 . 30 Core Hits 93 | 2 16 . 18 48 . 9 Critical Kills 1 | . . . . 1 . . Critical Parts Destroyed 2 | . . . 2 . . . Critical Strikes 4 | . . . 2 2 . . Destroy 1 | . . . . 1 . . Blast 1 | . . . . 1 . . Smash 2 | . . . 2 . . . Melee Attacks 74 | . . . 59 10 . 5 Impact 14 | . . . 4 10 . . Slashing 60 | . . . 55 . . 5 Piercing . | . . . . . . . Sneak Attacks 4 | . . . 4 . . . Combat Hostiles . | . . . . . . . Follow-up Attacks . | . . . . . . . Damage Inflicted 4489 | 107 529 . 951 2153 . 749 Guns 2139 | 107 529 . 293 857 . 353 Cannons 677 | . . . 15 457 . 205 Explosions 698 | . . . . 698 . . Melee 957 | . . . 643 123 . 191 Ramming 18 | . . . . 18 . . Kinetic 1510 | . 49 . 294 1093 . 74 Thermal 1293 | 107 480 . 14 221 . 471 Explosive 537 | . . . . 537 . . Electromagnetic 174 | . . . . 161 . 13 Impact 294 | . . . 171 123 . . Slashing 663 | . . . 472 . . 191 Piercing . | . . . . . . . Highest Corruption 9 | . . . . 9 . 7 Average Corruption 7 | . . . . 8 . 6 Corruption Purged . | . . . . . . . Corruption Blocked . | . . . . . . . Effects 45 | . . . . 42 . 3 Message Errors 12 | . . . . 12 . . Matter Fused 8 | . . . . 7 . 1 Heat Flow Errors 7 | . . . . 6 . 1 Energy Discharges 4 | . . . . 4 . . Parts Rejected 1 | . . . . 1 . . Data Loss (minor) 6 | . . . . 6 . . Data Loss (major) 1 | . . . . 1 . . Misfires 2 | . . . . 2 . . Alerts 3 | . . . . 2 . 1 Weapon Failures 1 | . . . . 1 . . Overload Shots . | . . . . . . . Overflow Damage 128 | . . . 124 . . 4 Projectiles . | . . . . . . . Explosions . | . . . . . . . Melee 128 | . . . 124 . . 4 Knockbacks 5 | . . . . 5 . . Impact . | . . . . . . . Kinetic 5 | . . . . 5 . . Secondary . | . . . . . . . Self-Inflicted Damage 29 | . . . . 29 . . Shots 1 | . . . . 1 . . Rammed 3 | . . . . 3 . . Targets Rammed 3 | . . . . 3 . . Kicked . | . . . . . . . Crushed . | . . . . . . . Highest Temperature 529 | 244 420 . 21 529 . 201 Average Temperature 136 | 133 193 . 4 131 . 103 Received Heat Transfer 2574 | 54 210 . 384 1278 . 648 Effects 25 | . 3 . . 19 . 3 Shutdowns 9 | . 2 . . 7 . . Energy Bleed 2 | . . . . 2 . . Interference 11 | . 1 . . 7 . 3 Matter Decay 2 | . . . . 2 . . Damage (major) 1 | . . . . 1 . . Siege Activations . | . . . . . . . Robots Corrupted . | . . . . . . . Combat Hostiles . | . . . . . . . Parts Fried 2 | . . . 2 . . . Impact Corruptions 3 | . . . 3 . . . Robots Melted . | . . . . . . . Combat Hostiles . | . . . . . . . Parts Melted 4 | 1 3 . . . . . Heat Transferred 2948 | 285 1213 . 37 481 . 932 Parts Sabotaged . | . . . . . . . Parts Stolen . | . . . . . . . Parts Stripped . | . . . . . . . Power Chain Reactions . | . . . . . . . Alert | -11 -10 -10 -9 -8 -7 -7 ------- Run | Yrd Mat Min Mat Mat Fac DSF Peak Influence 284 | 20 205 79 284 250 109 76 Initial 109 | . 13 79 22 66 109 76 Average 86 | 2 81 74 98 95 109 26 Maximum Alert Level 1 | . 1 . 1 1 . . Low Security (%) 91 | 100 94 100 86 90 100 100 Level 1 8 | . 5 . 13 9 . . Level 2 . | . . . . . . . Level 3 . | . . . . . . . Level 4 . | . . . . . . . Level 5 . | . . . . . . . High Security . | . . . . . . . Max Security . | . . . . . . . Squads Dispatched 12 | . 2 . 4 5 . 1 Investigation 6 | . 1 . 4 1 . . Extermination . | . . . . . . . Reinforcement 5 | . 1 . . 3 . 1 Assault . | . . . . . . . Garrison 1 | . . . . 1 . . Intercept . | . . . . . . . Searches Triggered . | . . . . . . . Construction Impeded . | . . . . . . . Haulers Reinforced . | . . . . . . . Active Scanning Responses . | . . . . . . . Cargo Convoy Interrupts . | . . . . . . . Stealth | -11 -10 -10 -9 -8 -7 -7 --------- Run | Yrd Mat Min Mat Mat Fac DSF Distress Signals 2 | . 1 . . 1 . . Communications Jammed . | . . . . . . . Distress Signals . | . . . . . . . Times Spotted 80 | 1 10 2 21 39 . 7 Peak Tracking Total 11 | 1 4 2 7 11 . 4 Tactical Retreats 2 | . . . 1 1 . . Traps | -11 -10 -10 -9 -8 -7 -7 ------- Run | Yrd Mat Min Mat Mat Fac DSF Traps Triggered 5 | . 2 . 1 2 . . Indirectly . | . . . . . . . Trap Hack Attempts . | . . . . . . . Triggered . | . . . . . . . Disarmed . | . . . . . . . Reprogrammed 3 | . 3 . . . . . Reused 1 | . 1 . . . . . Traps Extracted . | . . . . . . . Installed . | . . . . . . . Triggered 1 | . 1 . . . . . Machines | -11 -10 -10 -9 -8 -7 -7 ---------- Run | Yrd Mat Min Mat Mat Fac DSF Machines Disabled 1 | . . . . 1 . . Max in Single Turn 1 | . . . . 1 . . Machines Repaired . | . . . . . . . Machines Dismantled . | . . . . . . . Machines Sabotaged . | . . . . . . . Overloaded Fab Kills . | . . . . . . . Hacking | -11 -10 -10 -9 -8 -7 -7 --------- Run | Yrd Mat Min Mat Mat Fac DSF Machines Accessed 17 | . 1 . 10 5 1 . Terminals 11 | . 1 . 5 4 1 . Fabricators . | . . . . . . . Repair Stations 1 | . . . 1 . . . Recycling Units 3 | . . . 2 1 . . Scanalyzers 2 | . . . 2 . . . Garrison Access . | . . . . . . . Total Hacks 68 | . 3 . 43 21 1 . Successful 50 | . 1 . 34 14 1 . Failed 18 | . 2 . 9 7 . . Catastrophic 4 | . . . 2 2 . . Database Lockouts . | . . . . . . . Manual . | . . . . . . . Terminals 43 | . 3 . 21 18 1 . Fabricators . | . . . . . . . Repair Stations 1 | . . . 1 . . . Recycling Units 9 | . . . 6 3 . . Scanalyzers 15 | . . . 15 . . . Garrison Access . | . . . . . . . Terminal Hacks 26 | . 1 . 13 11 1 . Record 10 | . . . 4 6 . . Prototype ID Bank 4 | . . . 3 1 . . Open DSF 1 | . . . . . 1 . Emergency Access Points 2 | . . . 1 1 . . Alert Level 2 | . . . 1 1 . . Reprogram Traps 1 | . 1 . . . . . Dispatch Records 1 | . . . . 1 . . Surveillance Status 1 | . . . 1 . . . Investigation Status 1 | . . . . 1 . . Recall Reinforcements 1 | . . . 1 . . . Registered Components 1 | . . . 1 . . . Zone Layout 1 | . . . 1 . . . Fabricator Hacks . | . . . . . . . Repair Station Hacks . | . . . . . . . Recycling Unit Hacks 9 | . . . 6 3 . . Recycle Component 2 | . . . 2 . . . Process 2 | . . . 1 1 . . Report Inventory 3 | . . . 2 1 . . Retrieve Matter 1 | . . . . 1 . . Retrieve Components 1 | . . . 1 . . . Scanalyzer 15 | . . . 15 . . . Insert Component 7 | . . . 7 . . . Analyze 8 | . . . 8 . . . Garrison Access Hacks . | . . . . . . . Unauthorized Hacks . | . . . . . . . Terminals . | . . . . . . . Fabricators . | . . . . . . . Repair Stations . | . . . . . . . Recycling Units . | . . . . . . . Scanalyzers . | . . . . . . . Garrison Access . | . . . . . . . Data Cores Recovered . | . . . . . . . Used . | . . . . . . . Hacking Detections 14 | . 1 . 8 5 . . Full Trace Events 6 | . 1 . 3 2 . . Feedback Events . | . . . . . . . Feedback Blocked . | . . . . . . . Robot Schematics Acquired . | . . . . . . . Robots Built . | . . . . . . . Authchips . | . . . . . . . Time . | . . . . . . . Total Robot Build Rating . | . . . . . . . Part Schematics Acquired 7 | . . . 7 . . . Parts Built . | . . . . . . . Authchips . | . . . . . . . Time . | . . . . . . . Total Part Build Rating . | . . . . . . . Parts Repaired . | . . . . . . . Time . | . . . . . . . Parts Recycled 2 | . . . 2 . . . Recycled Matter 317 | . . . 206 111 . . Retrieved Matter 201 | . . . . 201 . . Retrieved Components 4 | . . . 4 . . . Parts Scanalyzed 7 | . . . 7 . . . Part Schematics Acquired 7 | . . . 7 . . . Parts Damaged 1 | . . . 1 . . . Bothacking | -11 -10 -10 -9 -8 -7 -7 ------------ Run | Yrd Mat Min Mat Mat Fac DSF Used RIF Installer . | . . . . . . . Robots Hacked . | . . . . . . . Non-combat . | . . . . . . . Combat . | . . . . . . . Robot Hacks Applied . | . . . . . . . Relay Couplers Released . | . . . . . . . Fabnet Peak Effective % . | . . . . . . . Robots Rewired . | . . . . . . . Allies Hacked . | . . . . . . . Hacks Repelled . | . . . . . . . Allies | -11 -10 -10 -9 -8 -7 -7 -------- Run | Yrd Mat Min Mat Mat Fac DSF Total Allies 2 | . . 2 . . . . Largest Group 2 | . . 2 . . . . Highest-Rated Group 41 | . . 41 . . . . Highest-Rated Ally 31 | . . 31 . . . . Total Orders . | . . . . . . . Ally Attacks 6 | . . 6 . . . . Total Damage 84 | . . 84 . . . . Kills . | . . . . . . . Allies Corrupted . | . . . . . . . Allies Melted . | . . . . . . . Intel | -11 -10 -10 -9 -8 -7 -7 ------- Run | Yrd Mat Min Mat Mat Fac DSF Robot Analysis Total . | . . . . . . . Derelict Logs Recovered 1 | . . 1 . . . . Drone Launches . | . . . . . . . Drone Recoveries . | . . . . . . . Exploration | -11 -10 -10 -9 -8 -7 -7 ------------- Run | Yrd Mat Min Mat Mat Fac DSF Turns Passed 2689 | 98 235 77 852 1183 51 193 Spaces Moved 1515 | 85 131 74 526 601 43 55 Core 39 | 23 . . . . . 16 Treads . | . . . . . . . Legs 11 | . . . . 11 . . Wheels 1411 | 62 131 74 526 536 43 39 Hover 23 | . . . . 23 . . Flight 31 | . . . . 31 . . Fastest Speed 50 | 50 80 105 105 101 105 105 Average Speed 119 | 71 95 105 105 138 105 199 Slowest Speed 595 | 80 105 105 120 595 105 450 Overloaded Moves . | . . . . . . . Propulsion Burnouts . | . . . . . . . Robots Hopped . | . . . . . . . Cave-ins Triggered 1 | . . . . . . 1 Exploration Rate (%) 23 | 9 20 16 35 38 1 48 Regions Visited 6 Branch Regions 1 Pre-discovered Areas 1 | . . 1 . . . . Known Exits Taken 1 | . . . . . 1 . Unknown Exits Taken 5 | 1 1 1 1 1 . . Scrap Searched . | . . . . . . . Spaces Dug 12 | . . . 12 . . . Terrain Destroyed 53 | . . . 12 41 . . Melee 12 | . . . 12 . . . Projectile 4 | . . . . 4 . . AOE 37 | . . . . 37 . . Terrain Rammed . | . . . . . . . Walls Destroyed . | . . . . . . . Machines Disabled . | . . . . . . . Actions | -11 -10 -10 -9 -8 -7 -7 --------- Run | Yrd Mat Min Mat Mat Fac DSF Total 2021 | 108 184 73 688 819 48 101 Wait 30 | . . . 19 8 . 3 Move 1509 | 84 130 73 525 600 42 55 Hop . | . . . . . . . Pick Up 97 | 10 12 . 25 41 2 7 Fast Attach . | . . . . . . . Attach 84 | 6 6 . 15 37 4 16 Detach 17 | 1 2 . 3 10 . 1 Swap 11 | . 2 . 2 7 . . Drop 34 | . 1 . 12 21 . . Fire 162 | 7 31 . 28 82 . 14 Melee 74 | . . . 59 10 . 5 Ram 3 | . . . . 3 . . Kick . | . . . . . . . Crush . | . . . . . . . Escape Stasis . | . . . . . . . Rewire . | . . . . . . . Trap . | . . . . . . . Miscellaneous . | . . . . . . . Route ------- -11/Scrapyard -10/Materials -10/Mines -9/Materials -8/Materials -7/Factory -7/DSF History --------- Turn | Location | Event 2 | -11/Scrapyard | Met Revision 17 63 | -11/Scrapyard | Discovered new exit (range 8) 99 | -11/Scrapyard | Entered Materials 168 | -10/Materials | Discovered new exit (range 8) 311 | -10/Materials | Core integrity fell below 50% 313 | -10/Materials | Build established: Mutant 334 | -10/Materials | Entered Mines 336 | -10/Mines | Discovered new exit (range 15) 343 | -10/Mines | Learned location of Recycling (-7) 411 | -10/Mines | Entered Materials 411 | -9/Materials | Evolved 2 slots: Power x1, Utility x1 896 | -9/Materials | Lost 4 parts (1p1n1u1w) 1197 | -9/Materials | Discovered new exit (range 14) 1263 | -9/Materials | Entered another Materials area 1263 | -8/Materials | Evolved 2 slots: Power x1, Propulsion x1 1385 | -8/Materials | Lost 8 parts (3p3n2u) 1991 | -8/Materials | Build established: Scavenger-Mutant 2054 | -8/Materials | Garrison activated, responded to threat 2359 | -8/Materials | Core integrity fell below 50% 2399 | -8/Materials | Lost 3 parts (1p1n1u) 2414 | -8/Materials | Discovered new exit (range 10) 2446 | -8/Materials | Entered Factory 2446 | -7/Factory | Evolved 2 slots: Utility x1, Weapon x1 2496 | -7/Factory | Identified exit to DSF 2497 | -7/Factory | Entered DSF 2530 | -7/DSF | Additional patrols routed to DSF 2564 | -7/DSF | Crushed by falling debris 2567 | -7/DSF | Core integrity fell below 50% 2628 | -7/DSF | Lost 19 parts (5p3n4u7w) 2635 | -7/DSF | Core integrity fell below 20% 2690 | -7/DSF | Destroyed by S-27 Virus with Autogun Last Messages --------------- Arm. Wheel destroyed. Acquired Greatsword. Critical hit (Burn: +37). Destroyed Lgt. Nuclear Core. G-47 Trooper destroyed. System corrupted: Matter fused (-7). C-30 ARC bursts open, deploying its payload. P-60 Hacker unfolds itself. Acquired 52 matter. Greatsword destroyed. P-60 Hacker destroyed. Critical hit (Burn: +37). System corrupted: IFF burst signal emitted. Acquired Mic. Nuclear Core. System corrupted: Heat flow error (+239). Greatsword destroyed. A-02 Transporter destroyed. C-30 ARC bursts open, deploying its payload. S-27 Virus unfolds itself. Acquired Arm. Treads. Map ----- +----------------------------------------------------+ | ????????????????????????????????????????????????? | | ????????????????????????????????????????????????? | | ????????????????????????????????????????????????? | | ????????????????????????????????????????????????? | | ????????????????????????????????????????????????? | | ????????????????????????????????????????????????? | | ????????????????????????????????????????????????? | | ????????????????????????????????????????????????? | | ????????????????????????????????????????????????? | | ????????????????????????????????????????????????? | | ??????????????????????# #?????????????????????? | | ?????????????????????? ?????????????????????? | | ?????????????????????? % ?????????????????????? | | ?????????????????????? ?????????????????????? | | ??????????????????????#s s#?????????????????????? | | ??????????????????????* s !?????????????????????? | | ??????????????????????* !?????????????????????? | | ??????????????????????* !?????????????????????? | | ????????????????###???# #???###???????????????? | | ????????????# ??#!!!?## ##?***#??!#???????????? | | ?????????????? #!!!##a a##***#!!??# ????????? | | ???????????????? % ???? ????????? | | ?????????????????? a ?????? [???????? | | ???????????????????? *!! ???????? [???????? | | ?????????????????????# !%!%#?????????# ???????? | | ??????????????????????# @*#??????????# ???????? | | ????????????????????### ###???????## ##??????? | | ????????????????????#!! #???????? =???????? | | ????????????????????#!g #???????? =???????? | | ????????????????????#!! #???????? =???????? | | ????????????????????#;; %###??????### ##??????? | | ????????????????????# [ !/ #???????== =#??????? | | ????????????????????#[[ !!/ #????????= =#??????? | | ????????????????????#[ % //########?# #???????? | | ????????????????????###% %###===#==### ###?????? | | ????????????????????### % ###===#==## ""###???? | | ????????????????????# [ """""#??? | | ????????????????????# % ""##"#??? | | ????????????????????#!!^^^% # #==##"""""#?????? | | ????????????????????#!!^^^ #########"""""#?????? | | ????????????????????##;##;###???????##"####?????? | | ?????????????????????##?###??????????#"#????????? | | ?????????????????????????????????????#""????????? | | ??????????????????????????????????????##????????? | | ????????????????????????????????????????????????? | | ????????????????????????????????????????????????? | | ????????????????????????????????????????????????? | | ????????????????????????????????????????????????? | | | | | +----------------------------------------------------+ Best States ------------- Heat Dissipation 62 Energy Generation 32 Energy Capacity 520 Matter Stores 400 Matter Capacity 400 Sight Range 16 Robot Scan Range 15 Terrain Scan Density 85 Additional Mass Support 6 Armor Coverage 225 Evasion (%) 50 Targeting Accuracy 8 Recoil Reduction 1 Item Schematics ----------------- Sml. Laser | -9/Materials | Scanalyzed Field Recycling Unit | -9/Materials | Scanalyzed EM Pulse Gun | -9/Materials | Scanalyzed Heat Sink | -9/Materials | Scanalyzed Terrain Scan Processor | -9/Materials | Scanalyzed Welding Torch | -9/Materials | Scanalyzed Arm. Wheel | -9/Materials | Scanalyzed Robot Schematics ------------------ None Fabricated ------------ Nothing Alien Tech Used ----------------- None Achievements -------------- I Spy Librarian Loot Pinata Part-time Excavator Troublemaker Unlikely Earthworm Use The Force Challenges ------------ None Game ------ Seed CouplerSpikedPod Manual? 0 Play Time 01:08:44 Cumulative 3.0 hours Start 2024.04.07 @ 01:01:16 End 2024.04.07 @ 02:12:51 Sessions 2 Manual Loads 0 Difficulty Rogue Special Mode None Game No. 2 Rogue 2 Adventurer 0 Explorer 0 Win Type - Total 0 Types 0/0/0/0/0/0/0/0/0 Lore% 1 Gallery% 10 Achievement% 9 Wizard Run 0 Options --------- Layout 0 ASCII 0 Keyboard 0 Movement Numpad Keybinds 0 Fullscreen 1 Font 18/SmallcapsGlow Map View 76x50 Zoom Use 0% Tactical HUD 0 Map Filters NONE Filters NONE Steam 1 RUN: 497eacdf-d632-4c6d-a295-a1168e56d216